[Event "Early-Titled-Tuesday-Blitz-March-26-2024"]
[Site "Chess.com"]
[Date "2024.03.26"]
[Round "3"]
[White "Mops_2004"]
[Black "HansOnTwitch"]
[Result "1/2-1/2"]
[WhiteElo "2821"]
[BlackElo "3114"]
[TimeControl "180+1"]
[EndTime "8:28:10 PDT"]
[Termination "Game drawn by repetition"]

1. Nf3 {[%clk 0:03:00.9]} 1... d5 {[%clk 0:02:54.6]} 2. g3 {[%clk 0:03:00.8]}
2... Nc6 {[%clk 0:02:46.3]} 3. d4 {[%clk 0:03:00.4]} 3... Bf5 {[%clk 0:02:45.8]}
4. Bg2 {[%clk 0:03:00.2]} 4... e6 {[%clk 0:02:45.8]} 5. O-O {[%clk 0:02:59.7]}
5... Nb4 {[%clk 0:02:46.2]} 6. Na3 {[%clk 0:02:59.7]} 6... Be7 {[%clk
0:02:45.6]} 7. Ne5 {[%clk 0:02:58.9]} 7... Nf6 {[%clk 0:02:38.6]} 8. c3 {[%clk
0:02:58.6]} 8... Nc6 {[%clk 0:02:38.5]} 9. Qa4 {[%clk 0:02:53.9]} 9... O-O
{[%clk 0:02:38.7]} 10. Nxc6 {[%clk 0:02:53.9]} 10... bxc6 {[%clk 0:02:39.6]} 11.
Qxc6 {[%clk 0:02:53.8]} 11... h5 {[%clk 0:02:39.6]} 12. c4 {[%clk 0:02:37.5]}
12... h4 {[%clk 0:02:35.3]} 13. cxd5 {[%clk 0:02:34.8]} 13... exd5 {[%clk
0:02:34.8]} 14. Bf4 {[%clk 0:02:34.8]} 14... h3 {[%clk 0:02:33.9]} 15. Bf3
{[%clk 0:02:34.1]} 15... Qb8 {[%clk 0:02:20.6]} 16. Qxc7 {[%clk 0:02:29.5]}
16... Qb4 {[%clk 0:02:05.8]} 17. Nc2 {[%clk 0:02:12.2]} 17... Qxb2 {[%clk
0:02:03.9]} 18. Ne3 {[%clk 0:02:01.3]} 18... Bd8 {[%clk 0:02:03.8]} 19. Qc1
{[%clk 0:02:01]} 19... Qxc1 {[%clk 0:02:02.8]} 20. Rfxc1 {[%clk 0:02:00.8]}
20... Be6 {[%clk 0:02:01.5]} 21. Bg5 {[%clk 0:01:55.5]} 21... Ne4 {[%clk
0:01:52.5]} 22. Bxd8 {[%clk 0:01:54.4]} 22... Rfxd8 {[%clk 0:01:53.4]} 23. Bxe4
{[%clk 0:01:46.4]} 23... dxe4 {[%clk 0:01:54.3]} 24. Rd1 {[%clk 0:01:46.6]}
24... Rab8 {[%clk 0:01:45.8]} 25. d5 {[%clk 0:01:45.4]} 25... Bd7 {[%clk
0:01:42.8]} 26. Rab1 {[%clk 0:01:41.4]} 26... Kf8 {[%clk 0:01:43.1]} 27. f3
{[%clk 0:01:40]} 27... exf3 {[%clk 0:01:43]} 28. exf3 {[%clk 0:01:39.9]} 28...
Ke7 {[%clk 0:01:37.8]} 29. Kf2 {[%clk 0:01:36.6]} 29... f5 {[%clk 0:01:30.3]}
30. Re1 {[%clk 0:01:14.4]} 30... Kf6 {[%clk 0:01:30.2]} 31. Rec1 {[%clk
0:01:14.3]} 31... Rdc8 {[%clk 0:01:22.3]} 32. Rxb8 {[%clk 0:00:29.6]} 32... Rxb8
{[%clk 0:01:21.7]} 33. d6 {[%clk 0:00:13.3]} 33... Rb2+ {[%clk 0:01:15.2]} 34.
Rc2 {[%clk 0:00:13.3]} 34... Rxc2+ {[%clk 0:01:14.3]} 35. Nxc2 {[%clk
0:00:13.2]} 35... Ke5 {[%clk 0:01:15]} 36. Ke3 {[%clk 0:00:11.5]} 36... Kxd6
{[%clk 0:01:15.1]} 37. Kd4 {[%clk 0:00:11.7]} 37... g5 {[%clk 0:00:50.4]} 38. f4
{[%clk 0:00:11.8]} 38... gxf4 {[%clk 0:00:47.8]} 39. gxf4 {[%clk 0:00:11.9]}
39... Bc6 {[%clk 0:00:46.4]} 40. Ne3 {[%clk 0:00:11]} 40... Be4 {[%clk
0:00:46.8]} 41. a3 {[%clk 0:00:10.2]} 41... Ke6 {[%clk 0:00:46.6]} 42. Kc5
{[%clk 0:00:08.8]} 42... Bd3 {[%clk 0:00:43.8]} 43. a4 {[%clk 0:00:05.7]} 43...
Be2 {[%clk 0:00:40.3]} 44. a5 {[%clk 0:00:05.5]} 44... a6 {[%clk 0:00:40.5]} 45.
Kc6 {[%clk 0:00:05.1]} 45... Bb5+ {[%clk 0:00:39.2]} 46. Kc5 {[%clk 0:00:04.5]}
46... Be2 {[%clk 0:00:39.3]} 47. Kc6 {[%clk 0:00:04.7]} 47... Bb5+ {[%clk
0:00:37.4]} 48. Kc5 {[%clk 0:00:05.2]} 48... Be2 {[%clk 0:00:37.9]} 1/2-1/2

[Event "Early-Titled-Tuesday-Blitz-March-26-2024"]
[Site "Chess.com"]
[Date "2024.03.26"]
[Round "3"]
[White "Kazmin_Semyon"]
[Black "RianKapriaga"]
[Result "1-0"]
[WhiteElo "2569"]
[BlackElo "2329"]
[TimeControl "180+1"]
[EndTime "8:28:12 PDT"]
[Termination "Kazmin_Semyon won on time"]

1. e4 {[%clk 0:03:00.6]} 1... c6 {[%clk 0:02:55.8]} 2. d4 {[%clk 0:03:00.6]}
2... d5 {[%clk 0:02:54.8]} 3. e5 {[%clk 0:03:01.2]} 3... Bf5 {[%clk 0:02:53.5]}
4. Nf3 {[%clk 0:03:00.3]} 4... e6 {[%clk 0:02:52.1]} 5. Be2 {[%clk 0:03:00.6]}
5... h6 {[%clk 0:02:50.9]} 6. O-O {[%clk 0:03:00.8]} 6... Nd7 {[%clk 0:02:49.4]}
7. a4 {[%clk 0:03:01.4]} 7... Ne7 {[%clk 0:02:43.6]} 8. a5 {[%clk 0:02:59.8]}
8... a6 {[%clk 0:02:42.9]} 9. b4 {[%clk 0:03:00.5]} 9... Bh7 {[%clk 0:02:39.3]}
10. Nbd2 {[%clk 0:02:57.9]} 10... Ng6 {[%clk 0:02:38.1]} 11. c3 {[%clk 0:02:53]}
11... Be7 {[%clk 0:02:37.5]} 12. Nb3 {[%clk 0:02:46.4]} 12... O-O {[%clk
0:02:35.6]} 13. Re1 {[%clk 0:02:46.6]} 13... f6 {[%clk 0:02:33.3]} 14. exf6
{[%clk 0:02:46]} 14... Bxf6 {[%clk 0:02:28.5]} 15. Bd3 {[%clk 0:02:46.2]} 15...
Re8 {[%clk 0:02:15.7]} 16. Qc2 {[%clk 0:02:42.7]} 16... Ngf8 {[%clk 0:02:11.8]}
17. Bf4 {[%clk 0:02:37.3]} 17... Qe7 {[%clk 0:01:52.4]} 18. Re2 {[%clk
0:02:29.7]} 18... Qf7 {[%clk 0:01:49.9]} 19. Bg3 {[%clk 0:02:28.8]} 19... Bxd3
{[%clk 0:01:45.8]} 20. Qxd3 {[%clk 0:02:29.7]} 20... Qg6 {[%clk 0:01:36.8]} 21.
Qd2 {[%clk 0:02:29.7]} 21... Qh5 {[%clk 0:01:16.5]} 22. Rae1 {[%clk 0:02:27.8]}
22... Re7 {[%clk 0:01:10.9]} 23. Bd6 {[%clk 0:02:22.9]} 23... Rf7 {[%clk
0:01:10.6]} 24. Qd3 {[%clk 0:02:10.7]} 24... Re8 {[%clk 0:01:05.2]} 25. Nbd2
{[%clk 0:02:09.1]} 25... Ng6 {[%clk 0:00:55.4]} 26. Rxe6 {[%clk 0:01:57.9]}
26... Rxe6 {[%clk 0:00:52]} 27. Rxe6 {[%clk 0:01:58.8]} 27... Qg4 {[%clk
0:00:43.7]} 28. Re8+ {[%clk 0:01:47.8]} 28... Ndf8 {[%clk 0:00:40.7]} 29. Bg3
{[%clk 0:01:07.1]} 29... Qh5 {[%clk 0:00:21.8]} 30. h3 {[%clk 0:01:01.1]} 30...
Ne7 {[%clk 0:00:19.6]} 31. Bd6 {[%clk 0:00:51.2]} 31... Ng6 {[%clk 0:00:18]} 32.
g4 {[%clk 0:00:46]} 32... Qxh3 {[%clk 0:00:16.7]} 33. Qxg6 {[%clk 0:00:46.5]}
33... Bh4 {[%clk 0:00:13.1]} 34. Bxf8 {[%clk 0:00:36.9]} 34... Rxf8 {[%clk
0:00:14]} 35. Qe6+ {[%clk 0:00:34]} 35... Kh7 {[%clk 0:00:12.1]} 36. Rxf8 {[%clk
0:00:34.6]} 36... Qxg4+ {[%clk 0:00:09]} 37. Qxg4 {[%clk 0:00:34.4]} 1-0

[Event "Early-Titled-Tuesday-Blitz-March-26-2024"]
[Site "Chess.com"]
[Date "2024.03.26"]
[Round "3"]
[White "RebelJohnny"]
[Black "Felix-Rose"]
[Result "1-0"]
[WhiteElo "2559"]
[BlackElo "2209"]
[TimeControl "180+1"]
[EndTime "8:28:12 PDT"]
[Termination "RebelJohnny won by checkmate"]

1. e4 {[%clk 0:03:00.9]} 1... c5 {[%clk 0:02:59.7]} 2. Nf3 {[%clk 0:03:00.5]}
2... g6 {[%clk 0:02:57.9]} 3. d4 {[%clk 0:02:59.6]} 3... cxd4 {[%clk 0:02:58.8]}
4. Nxd4 {[%clk 0:03:00.5]} 4... Nc6 {[%clk 0:02:59.1]} 5. Nc3 {[%clk 0:02:56.5]}
5... Bg7 {[%clk 0:02:58.5]} 6. Be3 {[%clk 0:02:43.9]} 6... Nf6 {[%clk
0:02:58.6]} 7. Bc4 {[%clk 0:02:42.6]} 7... O-O {[%clk 0:02:58.3]} 8. Bb3 {[%clk
0:02:33.5]} 8... a5 {[%clk 0:02:53.9]} 9. O-O {[%clk 0:02:31.1]} 9... d6 {[%clk
0:02:52.6]} 10. Ndb5 {[%clk 0:01:45.4]} 10... Bd7 {[%clk 0:02:50.9]} 11. a4
{[%clk 0:01:35.8]} 11... Nb4 {[%clk 0:02:50.2]} 12. f4 {[%clk 0:01:18.1]} 12...
Ng4 {[%clk 0:02:11.7]} 13. Bd4 {[%clk 0:01:14.9]} 13... e5 {[%clk 0:01:54.3]}
14. fxe5 {[%clk 0:01:14.9]} 14... Bxe5 {[%clk 0:01:02.7]} 15. Bxe5 {[%clk
0:01:02.9]} 15... dxe5 {[%clk 0:01:02.5]} 16. Qd6 {[%clk 0:00:43.4]} 16... Ra6
{[%clk 0:00:49.1]} 17. Qc5 {[%clk 0:00:20.4]} 17... Rc6 {[%clk 0:00:42.4]} 18.
Qa7 {[%clk 0:00:20.3]} 18... Ra6 {[%clk 0:00:33.2]} 19. Qxb7 {[%clk 0:00:09.5]}
19... Bxb5 {[%clk 0:00:26]} 20. Nxb5 {[%clk 0:00:07.2]} 20... Rb6 {[%clk
0:00:26.3]} 21. Qa7 {[%clk 0:00:05.1]} 21... Rf6 {[%clk 0:00:10.7]} 22. Qc7
{[%clk 0:00:03.7]} 22... Rxf1+ {[%clk 0:00:09.6]} 23. Rxf1 {[%clk 0:00:04.1]}
23... Qh4 {[%clk 0:00:09.8]} 24. Bxf7+ {[%clk 0:00:03.6]} 24... Kh8 {[%clk
0:00:09.3]} 25. h3 {[%clk 0:00:04.2]} 25... Qg3 {[%clk 0:00:05.9]} 26. hxg4
{[%clk 0:00:04]} 26... Qe3+ {[%clk 0:00:05.3]} 27. Kh1 {[%clk 0:00:04.1]} 27...
Qh6+ {[%clk 0:00:05.6]} 28. Kg1 {[%clk 0:00:04.5]} 28... Qd2 {[%clk 0:00:06]}
29. Qxe5# {[%clk 0:00:03.7]} 1-0

[Event "Early-Titled-Tuesday-Blitz-March-26-2024"]
[Site "Chess.com"]
[Date "2024.03.26"]
[Round "3"]
[White "Incognizance"]
[Black "Nf3c5"]
[Result "0-1"]
[WhiteElo "1910"]
[BlackElo "2538"]
[TimeControl "180+1"]
[EndTime "8:28:12 PDT"]
[Termination "Nf3c5 won on time"]

1. d4 {[%clk 0:03:00.9]} 1... Nf6 {[%clk 0:02:56.5]} 2. c4 {[%clk 0:03:01.1]}
2... g6 {[%clk 0:02:56.8]} 3. Nc3 {[%clk 0:03:01]} 3... Bg7 {[%clk 0:02:57.4]}
4. e4 {[%clk 0:03:01.2]} 4... O-O {[%clk 0:02:58.1]} 5. h3 {[%clk 0:03:01.3]}
5... d6 {[%clk 0:02:58.3]} 6. Be3 {[%clk 0:03:01.8]} 6... e5 {[%clk 0:02:41.6]}
7. d5 {[%clk 0:03:00.9]} 7... c6 {[%clk 0:02:41.1]} 8. g4 {[%clk 0:02:54.1]}
8... cxd5 {[%clk 0:02:40.7]} 9. cxd5 {[%clk 0:02:54]} 9... a5 {[%clk 0:02:30.9]}
10. Nge2 {[%clk 0:02:53.8]} 10... Na6 {[%clk 0:02:31.1]} 11. Ng3 {[%clk
0:02:52.6]} 11... Nc5 {[%clk 0:02:31.7]} 12. Be2 {[%clk 0:02:39.7]} 12... Bd7
{[%clk 0:02:30.8]} 13. h4 {[%clk 0:02:34.5]} 13... a4 {[%clk 0:02:30.5]} 14. g5
{[%clk 0:02:29.5]} 14... Ne8 {[%clk 0:02:27.4]} 15. h5 {[%clk 0:02:29.8]} 15...
Qa5 {[%clk 0:02:27.9]} 16. f3 {[%clk 0:01:59.3]} 16... a3 {[%clk 0:02:17.2]} 17.
Qc2 {[%clk 0:01:37.4]} 17... axb2 {[%clk 0:01:55.2]} 18. Qxb2 {[%clk 0:01:37.5]}
18... Na4 {[%clk 0:01:55.3]} 19. Qd2 {[%clk 0:01:16.1]} 19... Qxc3 {[%clk
0:01:51.5]} 20. Qxc3 {[%clk 0:01:15.3]} 20... Nxc3 {[%clk 0:01:52.4]} 21. h6
{[%clk 0:01:07.2]} 21... Bh8 {[%clk 0:01:49.6]} 22. Bc4 {[%clk 0:00:59.2]} 22...
b5 {[%clk 0:01:35.3]} 23. Bb3 {[%clk 0:00:55.9]} 23... b4 {[%clk 0:01:33.3]} 24.
Bd2 {[%clk 0:00:53.7]} 24... Nc7 {[%clk 0:01:30.6]} 25. Bxc3 {[%clk 0:00:52.3]}
25... bxc3 {[%clk 0:01:28.5]} 26. Rc1 {[%clk 0:00:53]} 26... Nb5 {[%clk
0:01:28.4]} 27. Ne2 {[%clk 0:00:53]} 27... f6 {[%clk 0:01:25.2]} 28. Nxc3 {[%clk
0:00:48.1]} 28... Nd4 {[%clk 0:01:22.4]} 29. O-O {[%clk 0:00:36.1]} 29... fxg5
{[%clk 0:01:19.3]} 30. Kg2 {[%clk 0:00:26.4]} 30... Bf6 {[%clk 0:01:10.5]} 31.
Nd1 {[%clk 0:00:14.8]} 31... g4 {[%clk 0:00:51.1]} 32. fxg4 {[%clk 0:00:13.5]}
32... Bg5 {[%clk 0:00:34.7]} 33. Rc7 {[%clk 0:00:11.9]} 33... Rxf1 {[%clk
0:00:33]} 34. Kxf1 {[%clk 0:00:12]} 34... Rd8 {[%clk 0:00:33]} 35. Nf2 {[%clk
0:00:08.7]} 35... Bxh6 {[%clk 0:00:32.7]} 36. Nd3 {[%clk 0:00:04.1]} 36... Bxg4
{[%clk 0:00:30.1]} 37. Nb4 {[%clk 0:00:03.6]} 37... Rf8+ {[%clk 0:00:28.6]} 38.
Kg2 {[%clk 0:00:03.6]} 38... Be3 {[%clk 0:00:28]} 39. Nc6 {[%clk 0:00:02.1]}
39... Ne2 {[%clk 0:00:24.5]} 0-1

[Event "Early-Titled-Tuesday-Blitz-March-26-2024"]
[Site "Chess.com"]
[Date "2024.03.26"]
[Round "3"]
[White "superchess02"]
[Black "LiadCuba"]
[Result "1-0"]
[WhiteElo "2855"]
[BlackElo "2574"]
[TimeControl "180+1"]
[EndTime "8:28:13 PDT"]
[Termination "superchess02 won on time"]

1. d4 {[%clk 0:03:00.9]} 1... d5 {[%clk 0:02:59.6]} 2. c4 {[%clk 0:03:01.8]}
2... e6 {[%clk 0:02:59.7]} 3. Nf3 {[%clk 0:03:01.8]} 3... Nf6 {[%clk 0:02:59.6]}
4. Nc3 {[%clk 0:03:02.4]} 4... c5 {[%clk 0:02:58.8]} 5. e3 {[%clk 0:03:00.7]}
5... a6 {[%clk 0:02:56.2]} 6. a3 {[%clk 0:03:00.6]} 6... Nc6 {[%clk 0:02:54.8]}
7. cxd5 {[%clk 0:03:00.4]} 7... Nxd5 {[%clk 0:02:45.7]} 8. Bc4 {[%clk
0:03:00.6]} 8... cxd4 {[%clk 0:02:43.9]} 9. exd4 {[%clk 0:02:55.1]} 9... Nxc3
{[%clk 0:02:40.1]} 10. bxc3 {[%clk 0:02:56]} 10... Be7 {[%clk 0:02:38.9]} 11.
O-O {[%clk 0:02:55.6]} 11... O-O {[%clk 0:02:39]} 12. Qe2 {[%clk 0:02:52.7]}
12... Bf6 {[%clk 0:02:20.1]} 13. Bd3 {[%clk 0:02:48]} 13... Ne7 {[%clk
0:02:17.8]} 14. Ng5 {[%clk 0:02:43.8]} 14... Ng6 {[%clk 0:02:05.4]} 15. f4
{[%clk 0:02:27.8]} 15... Bd7 {[%clk 0:01:58.5]} 16. Rf3 {[%clk 0:02:25]} 16...
Bb5 {[%clk 0:01:20.4]} 17. Bxb5 {[%clk 0:02:06.8]} 17... axb5 {[%clk 0:01:21.3]}
18. Qxb5 {[%clk 0:02:07.1]} 18... Bxd4+ {[%clk 0:01:12.9]} 19. Be3 {[%clk
0:01:31.1]} 19... Bxe3+ {[%clk 0:01:00.5]} 20. Rxe3 {[%clk 0:01:29.6]} 20...
Nxf4 {[%clk 0:00:59.1]} 21. Qe5 {[%clk 0:00:50.3]} 21... Ng6 {[%clk 0:00:36.6]}
22. Qg3 {[%clk 0:00:50.3]} 22... Ra5 {[%clk 0:00:33.9]} 23. Ne4 {[%clk
0:00:46.1]} 23... Qe7 {[%clk 0:00:23.5]} 24. Rf3 {[%clk 0:00:24]} 24... Rxa3
{[%clk 0:00:20.4]} 25. Rxa3 {[%clk 0:00:24.9]} 25... Qxa3 {[%clk 0:00:21]} 26.
h4 {[%clk 0:00:25.6]} 26... Qc1+ {[%clk 0:00:19.6]} 27. Kh2 {[%clk 0:00:25.7]}
27... Qh6 {[%clk 0:00:20]} 28. Kh3 {[%clk 0:00:23.7]} 28... f5 {[%clk
0:00:15.9]} 29. Ng5 {[%clk 0:00:18.9]} 29... f4 {[%clk 0:00:14.6]} 30. Qe1
{[%clk 0:00:19]} 30... e5 {[%clk 0:00:12.9]} 31. Kg4 {[%clk 0:00:17.8]} 31...
Ne7 {[%clk 0:00:08.1]} 32. Qxe5 {[%clk 0:00:17]} 32... Ng6 {[%clk 0:00:07.2]}
33. Qe6+ {[%clk 0:00:15.6]} 33... Kh8 {[%clk 0:00:07.4]} 34. h5 {[%clk 0:00:15]}
34... b5 {[%clk 0:00:01.3]} 35. hxg6 {[%clk 0:00:13.3]} 1-0

[Event "Early-Titled-Tuesday-Blitz-March-26-2024"]
[Site "Chess.com"]
[Date "2024.03.26"]
[Round "3"]
[White "verrbaa"]
[Black "newyorkmouse"]
[Result "0-1"]
[WhiteElo "2496"]
[BlackElo "2710"]
[TimeControl "180+1"]
[EndTime "8:28:13 PDT"]
[Termination "newyorkmouse won by checkmate"]

1. e4 {[%clk 0:02:53.6]} 1... c6 {[%clk 0:03:00]} 2. d4 {[%clk 0:02:52.6]} 2...
d5 {[%clk 0:03:00.6]} 3. e5 {[%clk 0:02:51.5]} 3... Na6 {[%clk 0:03:00.7]} 4.
Bd3 {[%clk 0:02:23]} 4... g6 {[%clk 0:02:55.8]} 5. h4 {[%clk 0:02:21.5]} 5... h5
{[%clk 0:02:56]} 6. Nf3 {[%clk 0:02:20.6]} 6... Nh6 {[%clk 0:02:54.8]} 7. Ng5
{[%clk 0:01:55.6]} 7... Nc7 {[%clk 0:02:53.9]} 8. Nd2 {[%clk 0:01:52]} 8... Bf5
{[%clk 0:02:52.5]} 9. Bxf5 {[%clk 0:01:45.3]} 9... Nxf5 {[%clk 0:02:53.4]} 10.
c3 {[%clk 0:01:45.7]} 10... f6 {[%clk 0:02:46.2]} 11. Ngf3 {[%clk 0:01:35.7]}
11... Kf7 {[%clk 0:02:34.9]} 12. Qe2 {[%clk 0:01:33.7]} 12... Ne6 {[%clk
0:02:28.1]} 13. Nf1 {[%clk 0:01:33]} 13... Bh6 {[%clk 0:02:26.5]} 14. Ne3 {[%clk
0:01:26.2]} 14... Nxe3 {[%clk 0:02:06.9]} 15. fxe3 {[%clk 0:01:25.1]} 15... Ng7
{[%clk 0:02:04.3]} 16. O-O {[%clk 0:01:07.1]} 16... Nf5 {[%clk 0:02:03.8]} 17.
Qf2 {[%clk 0:01:07.8]} 17... Kg7 {[%clk 0:02:01.9]} 18. Bd2 {[%clk 0:01:07.4]}
18... Kh7 {[%clk 0:01:56.1]} 19. Rae1 {[%clk 0:01:07.6]} 19... Rf8 {[%clk
0:01:52.9]} 20. e4 {[%clk 0:01:03.3]} 20... dxe4 {[%clk 0:01:50.2]} 21. Rxe4
{[%clk 0:01:04.2]} 21... Qd5 {[%clk 0:01:49.4]} 22. Rfe1 {[%clk 0:01:03]} 22...
Bxd2 {[%clk 0:01:35.6]} 23. Nxd2 {[%clk 0:01:02.5]} 23... Qxa2 {[%clk
0:01:35.8]} 24. g4 {[%clk 0:00:51.9]} 24... Ng7 {[%clk 0:01:24.3]} 25. exf6
{[%clk 0:00:46.2]} 25... exf6 {[%clk 0:01:21.1]} 26. b3 {[%clk 0:00:31.3]} 26...
Rf7 {[%clk 0:01:18.6]} 27. Re7 {[%clk 0:00:29.9]} 27... Raf8 {[%clk 0:01:18.2]}
28. g5 {[%clk 0:00:22.1]} 28... Nf5 {[%clk 0:01:03.1]} 29. Rxf7+ {[%clk
0:00:21.6]} 29... Rxf7 {[%clk 0:01:03.2]} 30. Ne4 {[%clk 0:00:13.1]} 30... Qxf2+
{[%clk 0:00:59.1]} 31. Kxf2 {[%clk 0:00:14]} 31... Kg7 {[%clk 0:00:38]} 32. Nxf6
{[%clk 0:00:14.1]} 32... Ne7 {[%clk 0:00:34.2]} 33. Kf3 {[%clk 0:00:12.7]} 33...
Nd5 {[%clk 0:00:34.3]} 34. Re6 {[%clk 0:00:08]} 34... Nxf6 {[%clk 0:00:32.5]}
35. gxf6+ {[%clk 0:00:04.8]} 35... Rxf6+ {[%clk 0:00:33.1]} 36. Rxf6 {[%clk
0:00:04.9]} 36... Kxf6 {[%clk 0:00:34]} 37. Kf4 {[%clk 0:00:05.2]} 37... a5
{[%clk 0:00:32.1]} 38. c4 {[%clk 0:00:05.3]} 38... b5 {[%clk 0:00:31.3]} 39.
cxb5 {[%clk 0:00:03]} 39... cxb5 {[%clk 0:00:31.1]} 40. d5 {[%clk 0:00:03.9]}
40... a4 {[%clk 0:00:31]} 41. bxa4 {[%clk 0:00:03.3]} 41... bxa4 {[%clk
0:00:31.9]} 42. d6 {[%clk 0:00:03.7]} 42... Ke6 {[%clk 0:00:32.3]} 43. Kg5
{[%clk 0:00:04.4]} 43... a3 {[%clk 0:00:32.2]} 44. Kxg6 {[%clk 0:00:04.9]} 44...
a2 {[%clk 0:00:32.8]} 45. Kxh5 {[%clk 0:00:05.6]} 45... a1=Q {[%clk 0:00:33.3]}
46. Kg6 {[%clk 0:00:06.3]} 46... Qh8 {[%clk 0:00:32.5]} 47. h5 {[%clk
0:00:05.8]} 47... Qg8+ {[%clk 0:00:33]} 48. Kh6 {[%clk 0:00:05.8]} 48... Kf6
{[%clk 0:00:33.8]} 49. d7 {[%clk 0:00:05.2]} 49... Qh8# {[%clk 0:00:34.7]} 0-1

[Event "Early-Titled-Tuesday-Blitz-March-26-2024"]
[Site "Chess.com"]
[Date "2024.03.26"]
[Round "3"]
[White "biostatistician"]
[Black "Masterbeaterr"]
[Result "0-1"]
[WhiteElo "2611"]
[BlackElo "2459"]
[TimeControl "180+1"]
[EndTime "8:28:13 PDT"]
[Termination "Masterbeaterr won on time"]

1. d4 {[%clk 0:03:00.1]} 1... d5 {[%clk 0:02:58.8]} 2. Nf3 {[%clk 0:02:58.9]}
2... Nf6 {[%clk 0:02:58.3]} 3. c4 {[%clk 0:02:59.8]} 3... dxc4 {[%clk
0:02:58.7]} 4. e3 {[%clk 0:02:59.5]} 4... e6 {[%clk 0:02:59.1]} 5. Bxc4 {[%clk
0:02:59.7]} 5... c5 {[%clk 0:02:59.8]} 6. O-O {[%clk 0:03:00.1]} 6... Nc6 {[%clk
0:02:59.2]} 7. Nc3 {[%clk 0:02:51.6]} 7... cxd4 {[%clk 0:02:59.2]} 8. exd4
{[%clk 0:02:51.5]} 8... Be7 {[%clk 0:02:59.8]} 9. Re1 {[%clk 0:02:50.1]} 9...
O-O {[%clk 0:02:59.4]} 10. Bg5 {[%clk 0:02:48.6]} 10... Na5 {[%clk 0:02:58.2]}
11. Bd3 {[%clk 0:02:48]} 11... b6 {[%clk 0:02:58.8]} 12. Qe2 {[%clk 0:02:42.6]}
12... Bb7 {[%clk 0:02:57.5]} 13. Rad1 {[%clk 0:02:42.7]} 13... Rc8 {[%clk
0:02:49.1]} 14. Ne5 {[%clk 0:02:37.3]} 14... Nc6 {[%clk 0:02:42.7]} 15. Qe3
{[%clk 0:02:23]} 15... Nb4 {[%clk 0:02:40.1]} 16. Bb1 {[%clk 0:02:12.9]} 16...
Nbd5 {[%clk 0:02:39.7]} 17. Qh3 {[%clk 0:02:13]} 17... g6 {[%clk 0:02:40]} 18.
Bh6 {[%clk 0:01:09.3]} 18... Nxc3 {[%clk 0:02:20.2]} 19. bxc3 {[%clk 0:01:09.1]}
19... Bd5 {[%clk 0:02:19.5]} 20. Bxf8 {[%clk 0:01:07.8]} 20... Bxf8 {[%clk
0:02:19]} 21. Qd3 {[%clk 0:00:55.8]} 21... Qc7 {[%clk 0:02:04.6]} 22. Rc1 {[%clk
0:00:46.9]} 22... Nh5 {[%clk 0:01:52.6]} 23. c4 {[%clk 0:00:42.6]} 23... Bxg2
{[%clk 0:01:49.2]} 24. Qe3 {[%clk 0:00:27.1]} 24... Bb7 {[%clk 0:01:47]} 25. d5
{[%clk 0:00:24.7]} 25... Bc5 {[%clk 0:01:41.2]} 26. Qf3 {[%clk 0:00:21]} 26...
Qe7 {[%clk 0:01:31]} 27. Ng4 {[%clk 0:00:16.1]} 27... Qg5 {[%clk 0:01:25.3]} 28.
Kf1 {[%clk 0:00:11.9]} 28... exd5 {[%clk 0:01:15.2]} 29. cxd5 {[%clk 0:00:12.8]}
29... Bxd5 {[%clk 0:01:11.7]} 30. Qh3 {[%clk 0:00:08.7]} 30... Be6 {[%clk
0:01:00.6]} 31. f3 {[%clk 0:00:08]} 31... Nf4 {[%clk 0:00:50.3]} 32. Qg3 {[%clk
0:00:07.8]} 32... Bxg4 {[%clk 0:00:44.8]} 33. Qxg4 {[%clk 0:00:07.7]} 33... Qxg4
{[%clk 0:00:42.9]} 34. fxg4 {[%clk 0:00:08.6]} 34... h6 {[%clk 0:00:40.5]} 35.
h4 {[%clk 0:00:08.2]} 35... Nd5 {[%clk 0:00:32.8]} 36. Re5 {[%clk 0:00:04.8]}
36... Rd8 {[%clk 0:00:29.5]} 37. Ke1 {[%clk 0:00:02.6]} 37... Nf4 {[%clk
0:00:24.3]} 38. Rd1 {[%clk 0:00:01.9]} 38... Bb4+ {[%clk 0:00:22.4]} 0-1

[Event "Early-Titled-Tuesday-Blitz-March-26-2024"]
[Site "Chess.com"]
[Date "2024.03.26"]
[Round "3"]
[White "KetiTsatsalashvili"]
[Black "cristiano78"]
[Result "1-0"]
[WhiteElo "2442"]
[BlackElo "2221"]
[TimeControl "180+1"]
[EndTime "8:28:15 PDT"]
[Termination "KetiTsatsalashvili won by resignation"]

1. d4 {[%clk 0:03:00.9]} 1... Nf6 {[%clk 0:02:47.5]} 2. Nf3 {[%clk 0:03:00.1]}
2... g6 {[%clk 0:02:46.7]} 3. c4 {[%clk 0:02:59.4]} 3... d6 {[%clk 0:02:46.2]}
4. Nc3 {[%clk 0:02:59.1]} 4... Bg7 {[%clk 0:02:45.3]} 5. e4 {[%clk 0:02:59.2]}
5... O-O {[%clk 0:02:44.6]} 6. Be2 {[%clk 0:02:59.2]} 6... e5 {[%clk 0:02:44.2]}
7. O-O {[%clk 0:02:55.9]} 7... Nc6 {[%clk 0:02:43.1]} 8. d5 {[%clk 0:02:55.8]}
8... Ne7 {[%clk 0:02:42.2]} 9. Nd2 {[%clk 0:02:56.4]} 9... Ne8 {[%clk
0:02:37.7]} 10. b4 {[%clk 0:02:56.2]} 10... f5 {[%clk 0:02:38.1]} 11. c5 {[%clk
0:02:54.1]} 11... h5 {[%clk 0:02:33.4]} 12. exf5 {[%clk 0:02:44.8]} 12... Nxf5
{[%clk 0:02:31.1]} 13. Nde4 {[%clk 0:02:39.4]} 13... Nd4 {[%clk 0:02:23.1]} 14.
Bg5 {[%clk 0:02:38.8]} 14... Nf6 {[%clk 0:02:20.4]} 15. Nxf6+ {[%clk 0:02:17.6]}
15... Bxf6 {[%clk 0:02:19]} 16. Bxf6 {[%clk 0:02:18]} 16... Qxf6 {[%clk
0:02:14.9]} 17. Ne4 {[%clk 0:02:18.6]} 17... Qe7 {[%clk 0:02:13.9]} 18. cxd6
{[%clk 0:02:10.1]} 18... cxd6 {[%clk 0:02:11.2]} 19. Rc1 {[%clk 0:01:58.4]}
19... Bf5 {[%clk 0:02:08.4]} 20. Bd3 {[%clk 0:01:57.1]} 20... Rac8 {[%clk
0:02:05]} 21. Qd2 {[%clk 0:01:49.2]} 21... Qh4 {[%clk 0:01:50.1]} 22. Rxc8
{[%clk 0:01:34]} 22... Rxc8 {[%clk 0:01:42.6]} 23. Nxd6 {[%clk 0:01:33.3]} 23...
Qg4 {[%clk 0:01:32.7]} 24. f3 {[%clk 0:01:20.1]} 24... Nxf3+ {[%clk 0:00:51.2]}
25. Rxf3 {[%clk 0:01:19.5]} 25... Qd4+ {[%clk 0:00:49.7]} 26. Re3 {[%clk
0:00:45.4]} 26... Rc2 {[%clk 0:00:23.2]} 27. Nxf5 {[%clk 0:00:26.8]} 27... gxf5
{[%clk 0:00:17.1]} 28. Qxc2 {[%clk 0:00:19.3]} 28... Qxe3+ {[%clk 0:00:16.5]}
29. Kf1 {[%clk 0:00:20]} 29... e4 {[%clk 0:00:15.2]} 30. Be2 {[%clk 0:00:18.9]}
30... f4 {[%clk 0:00:11.1]} 31. Bxh5 {[%clk 0:00:14.5]} 31... f3 {[%clk
0:00:05.6]} 32. gxf3 {[%clk 0:00:13.4]} 32... exf3 {[%clk 0:00:03.8]} 33. Qg6+
{[%clk 0:00:13.5]} 33... Kh8 {[%clk 0:00:03.9]} 34. Qf6+ {[%clk 0:00:13.7]}
34... Kg8 {[%clk 0:00:03.4]} 35. Bf7+ {[%clk 0:00:14]} 35... Kh7 {[%clk
0:00:03.6]} 36. Qg6+ {[%clk 0:00:14.2]} 1-0